fUST/lending_fUST_20250412
["ID","MTS","AMOUNT","RATE_DAILY","PERIOD"]
[357802104,1744449033342,-597.4,0.00032321,3]
[357802105,1744449033352,-298.7,0.00032321,3]
[357802106,1744449033362,-896.14,0.00032321,3]
[357802107,1744449033373,-207.4,0.00032322,2]
[357802108,1744449033383,-406.50945875,0.0003233,2]
[357802109,1744449033394,-39141.98621306,0.00032331,2]
[357802110,1744449033408,-13167.53855973,0.00032331,2]
[357802111,1744449033419,-1273.32038068,0.00032331,2]
[357802112,1744449033432,-175870.53368453,0.00032331,2]
[357802113,1744449033442,-114726.689419,0.00032341,2]
[357802114,1744449033452,-58114.33455311,0.00032351,2]
[357802115,1744449033462,-500.0,0.00032373,5]
[357802116,1744449033473,-422.07207827,0.00032373,5]
[357802117,1744449033483,-500.35416561,0.00032373,5]
[357802118,1744449033493,-501.23088036,0.00032373,5]
[357802119,1744449033503,-500.0,0.00032373,5]
[357802120,1744449033514,-500.0,0.00032373,5]
[357802121,1744449033525,-9835.1063754,0.00032396,2]
[357802122,1744449033535,-2332.99245984,0.00032396,3]
[357802123,1744449033547,-500.0,0.00032396,5]
[357802124,1744449033558,-500.0,0.00032396,5]
[357802125,1744449033569,-500.0,0.00032396,5]
[357802126,1744449033579,-500.0,0.00032396,5]
[357802127,1744449033590,-200.0,0.000325,33]
[357802128,1744449033600,-949.3870197,0.00032659,10]
[357802129,1744449033613,-353.0,0.0003272,30]
[357802130,1744449033623,-190.47,0.000328,2]
[357802131,1744449033633,-190.47,0.000328,15]
[357802132,1744449033644,-209.70725648,0.000328,15]
[357802133,1744449033654,-2215.591,0.0003287,2]
[357802134,1744449033664,-617.05910031,0.0003287,15]
[357802135,1744449033675,-500.0,0.00032873,5]
[357802136,1744449033685,-500.0,0.00032873,5]
[357802137,1744449033695,-500.0,0.00032873,5]
[357802138,1744449033706,-500.0,0.00032873,5]
[357802139,1744449033716,-500.0,0.00032873,5]
[357802140,1744449033727,-500.0,0.00032877,2]
[357802141,1744449033737,-500.0,0.00032877,2]
[357802142,1744449033747,-400.0,0.00032877,60]
[357802143,1744449033757,-1000.0,0.00032877,5]
[357802144,1744449033768,-114726.689419,0.0003288,2]
[357802145,1744449033778,-156.49085179,0.00032894,2]
[357802146,1744449033789,-163.96,0.00032899,2]
[357802147,1744449033801,-163.96,0.00032899,2]
[357802148,1744449033811,-163.96,0.00032899,2]
[357802149,1744449033823,-1361.95,0.000329,7]
[357802150,1744449033833,-68140.57,0.000329,30]
[357802151,1744449033844,-1572.16,0.000329,30]
[357802152,1744449033854,-4092.32,0.000329,30]
[357802153,1744449033864,-1392.43,0.000329,30]
[357802154,1744449033876,-160.0,0.000329,30]
[357802155,1744449033892,-160.0,0.000329,30]
[357802156,1744449033903,-978.59587739,0.00032903,2]
[357802157,1744449033914,-201.2335625,0.00033,21]
[357802158,1744449033924,-200.0,0.00033,30]
[357802159,1744449033935,-1000.0,0.00033,120]
[357802160,1744449033945,-784.0,0.00033,2]
[357802161,1744449033956,-272.0,0.00033,2]
[357802162,1744449033967,-272.0,0.00033,2]
[357802163,1744449033978,-949.3870197,0.00033141,11]
[357802164,1744449033989,-5000.0,0.00033268,2]
[357802165,1744449034000,-174.38190682,0.00033379,5]
[357802166,1744449034011,-949.3870197,0.00033624,11]
[357802167,1744449034022,-318.62,0.00033691,3]
[357802168,1744449034032,-2389.62,0.00033691,3]
[357802169,1744449034043,-1194.8,0.00033691,3]
[357802170,1744449034054,-597.4,0.00033691,3]
[357802171,1744449034064,-392.6,0.00033691,2]
[357802172,1744449034075,-160.0,0.00033701,3]
[357802173,1744449034086,-706.0,0.00033802,2]
[357802174,1744449034097,-1013.49649747,0.00034,3]
[357802175,1744449034107,-500.0,0.0003406,5]
[357802176,1744449034117,-949.3870197,0.00034107,11]
[357802177,1744449034128,-500.0,0.00034292,5]
[357802178,1744449034138,-1014.08588984,0.000345,2]
[357802179,1744449034148,-5000.0,0.00034518,2]
[357802180,1744449034159,-949.3870197,0.0003459,12]
[357802181,1744449034170,-200.0,0.0003462,38]
[357802182,1744449034181,-978.59587739,0.00034628,2]
[357802183,1744449034192,-584.73818131,0.00034773,5]
[357802184,1744449034202,-500.0,0.00034773,5]
[357802185,1744449034212,-500.0,0.00034773,5]
[357802186,1744449034223,-151.422805,0.0003479,3]
[357802187,1744449034233,-553.951435,0.0003479,14]
[357802188,1744449034244,-553.951435,0.0003479,14]
[357802189,1744449034258,-151.0,0.0003479,14]
[357802190,1744449034269,-484.230806,0.0003479,14]
[357802191,1744449034280,-484.230806,0.0003479,14]
[357802192,1744449034290,-151.0,0.0003479,14]
[357802193,1744449034301,-723.825718,0.0003479,2]
[357802194,1744449034311,-723.825718,0.0003479,2]
[357802195,1744449034321,-264.137334,0.0003479,14]
[357802196,1744449034332,-313.976232,0.0003479,14]
[357802197,1744449034342,-313.976232,0.0003479,14]
[357802198,1744449034352,-264.137334,0.0003479,14]
[357802199,1744449034362,-151.0,0.0003479,14]
[357802200,1744449034372,-151.0,0.0003479,14]
[357802201,1744449034382,-151.0,0.0003479,14]
[357802202,1744449034391,-151.0,0.0003479,14]
[357802203,1744449034401,-151.0,0.0003479,14]
[357802204,1744449034412,-268.579463,0.0003479,14]
[357802205,1744449034422,-343.222197,0.0003479,14]
[357802206,1744449034432,-343.222197,0.0003479,14]
[357802207,1744449034443,-1580.45891784,0.00034796,2]
[357802208,1744449034452,-163.96,0.00034799,2]
[357802209,1744449034463,-1694298.68723524,0.000348,120]
[357802260,1744449038220,-402.0,0.00024802,2]
[357802264,1744449038248,-402.0,0.00027802,2]
[357802267,1744449038272,-402.0,0.00030802,2]
[357802270,1744449038294,-156.31314247,0.00031945,2]
[357802273,1744449038317,-708.5,0.00033069,30]
[357802277,1744449038341,-211.71712515,0.00033802,2]
[357802506,1744449040490,-190.28287485,0.00033802,2]
[357802509,1744449040508,-253992.22368694,0.000348,120]
[357802513,1744449040529,-5157.01859741,0.000348,120]
[357802516,1744449040551,-500.0,0.000348,120]
[357802782,1744449043159,-352.5,0.00033069,30]
[357802785,1744449043178,-272.0,0.000348,2]
[357802788,1744449043195,-10389.73417556,0.000348,120]
[357803131,1744449046239,-471.7899995,0.000348,120]
[357804790,1744449634870,200.0,0.00027,120]
[357804813,1744450232265,-500.0,0.00025204,2]
[357804814,1744450232276,-160.0,0.00025267,2]
[357804817,1744450232286,-153.763,0.00025902,2]
[357804819,1744450232296,-402.0,0.00025902,2]
[357804821,1744450232305,-325.6244295,0.00026599,2]
[357804823,1744450232314,-500.0,0.00027397,5]
[357804824,1744450232326,-160.0,0.00028,3]
[357804825,1744450232335,-160.0,0.00028,3]
[357804826,1744450232344,-160.0,0.00028,3]
[357804827,1744450232354,-348.10857389,0.000289,8]
[357804828,1744450232363,-402.0,0.00028902,2]
[357804829,1744450232373,-160.0,0.00029,10]
[357804830,1744450232383,-8333.11989997,0.00029279,2]
[357804831,1744450232393,-348.10857389,0.00029279,8]
[357804832,1744450232402,-348.10857389,0.00029659,8]
[357804833,1744450232412,-5000.0,0.00029769,2]
[357804834,1744450232422,-7255.9311429,0.00029903,2]
[357804835,1744450232431,-242.0,0.0003,2]
[357804836,1744450232441,-348.10857389,0.00030038,9]
[357804837,1744450232451,-348.10857389,0.00030417,9]
[357804838,1744450232461,-348.10857389,0.00030797,9]
[357804839,1744450232470,-1000.0,0.000311,5]
[357804840,1744450232480,-348.10857389,0.00031176,9]
[357804841,1744450232490,-200.0,0.0003132,14]
[357804842,1744450232499,-263.57491014,0.0003132,14]
[357804843,1744450232509,-348.10857389,0.00031555,10]
[357804844,1744450232518,-402.0,0.00031902,2]
[357804845,1744450232528,-348.10857389,0.00031934,10]
[357804846,1744450232538,-191.19,0.00032,2]
[357804847,1744450232547,-5000.0,0.00032269,2]
[357804848,1744450232557,-203.75335,0.000323,120]
[357804849,1744450232567,-348.10857389,0.00032314,10]
[357804850,1744450232577,-348.10857389,0.00032693,10]
[357804851,1744450232587,-500.0,0.00032877,2]
[357804852,1744450232596,-500.0,0.00032877,2]
[357804853,1744450232606,-770.32507617,0.00032877,60]
[357804854,1744450232616,-1000.0,0.00032877,5]
[357804855,1744450232625,-242.0,0.00033,2]
[357804856,1744450232636,-242.0,0.00033,2]
[357804857,1744450232650,-348.10857389,0.00033072,11]
[357804858,1744450232660,-200.0,0.0003312,34]
[357804859,1744450232670,-199.976917,0.00033168,120]
[357804860,1744450232680,-160.0,0.00033445,2]
[357804861,1744450232690,-348.10857389,0.00033452,11]
[357804862,1744450232700,-1000.0,0.00033702,2]
[357804863,1744450232710,-337.3989418,0.00033756,4]
[357804864,1744450232722,-348.10857389,0.00033831,11]
[357804865,1744450232731,-1000.0,0.00034,120]
[357804866,1744450232741,-348.10857389,0.0003421,11]
[357804867,1744450232751,-703.88263694,0.000344,2]
[357804868,1744450232760,-348.10857389,0.0003459,12]
[357804869,1744450232770,-500.0,0.000347,2]
[357804870,1744450232780,-500.0,0.000347,14]
[357804871,1744450232789,-5000.0,0.00034769,2]
[357804872,1744450232799,-210.64428236,0.00034772,7]
[357804873,1744450232809,-500.0,0.00034773,2]
[357804874,1744450232821,-490.45020929,0.00034773,5]
[357804875,1744450232831,-500.0,0.00034773,5]
[357804876,1744450232840,-500.0,0.00034773,5]
[357804877,1744450232850,-339.89883348,0.00034773,5]
[357804878,1744450232859,-500.0,0.00034773,5]
[357804879,1744450232870,-287.45,0.0003478,3]
[357804880,1744450232880,-437.27127679,0.00034789,7]
[357804881,1744450232889,-412.13582091,0.00034789,7]
[357804882,1744450232899,-10559.68205635,0.0003479,2]
[357804883,1744450232912,-278.80680054,0.0003479,2]
[357804912,1744450238371,-253.0492064,0.00033756,4]
[357804914,1744450238381,-862.39,0.0003478,3]
[357804916,1744450238390,-40864.06209406,0.0003479,2]
[357804918,1744450238402,-998.86950075,0.0003479,2]
[357804921,1744450238425,-835.445144,0.0003479,2]
[357805099,1744450240459,-176.16003083,0.000347,2]
[357805101,1744450240470,-538.6207773,0.0003479,2]
[357805104,1744450240482,-446.17071677,0.0003479,2]
[357805106,1744450240494,-720.14,0.0003479,2]
[357805109,1744450240517,-330.154,0.0003479,2]
[357805401,1744450243347,-242.0,0.0003479,2]
[357805402,1744450243357,-8082.7419846,0.0003479,2]
[357805718,1744450246421,-2760.38275018,0.0003479,2]
[357805720,1744450246434,-462.14600001,0.0003479,2]
[357805732,1744450246529,-17953.0118458,0.0003479,2]
[357807222,1744451062998,573.95233523,0.00028,10]
[357807223,1744451104295,-184.0209793,0.000155,2]
[357807249,1744451432430,-702.2986582,0.000155,2]
[357807251,1744451432440,-500.0,0.0002515,2]
[357807253,1744451432450,-557.94,0.000252,2]
[357807255,1744451432460,-169.18696544,0.00025205,2]
[357807257,1744451432471,-500.0,0.00026408,2]
[357807259,1744451432481,-160.0,0.00026561,2]
[357807261,1744451432492,-1000.0,0.00026887,2]
[357807263,1744451432502,-500.0,0.00027397,5]
[357807265,1744451432512,-3371.6762556,0.00027487,2]
[357807267,1744451432522,-172.07,0.000276,2]
[357807269,1744451432532,-300.0,0.00027765,2]
[357807271,1744451432542,-5976.8512493,0.00027766,2]
[357807273,1744451432551,-201.21991542,0.000279,7]
[357807276,1744451432562,-160.0,0.00028,3]
[357807278,1744451432572,-160.0,0.00028,3]
[357807280,1744451432582,-160.0,0.00028,3]
[357807282,1744451432591,-201.2199152,0.00028362,7]
[357807284,1744451432601,-201.2199152,0.00028823,8]
[357807286,1744451432611,-160.0,0.00029,10]
[357807288,1744451432621,-160.0,0.00029,10]
[357807290,1744451432630,-201.2199152,0.00029285,8]
[357807292,1744451432640,-201.2199152,0.00029746,8]
[357807294,1744451432649,-574.9,0.0002997,3]
[357807296,1744451432659,-351.69864884,0.00029973,5]
[357807298,1744451432669,-500.0,0.00029973,2]
[357807300,1744451432679,-500.0,0.00029973,5]
[357807302,1744451432689,-500.0,0.00029973,5]
[357807304,1744451432699,-238.83097598,0.00029979,2]
[357807306,1744451432709,-587.06653883,0.00029979,2]
[357807308,1744451432719,-12742.71140609,0.0002998,2]
[357807310,1744451432729,-1166.49622992,0.0002998,3]
[357807312,1744451432738,-48361.4424286,0.0002998,2]
[357807314,1744451432751,-928.14550992,0.0002998,2]
[357807316,1744451432763,-388409.61132048,0.0002998,2]
[357807318,1744451432773,-300.0,0.00029993,2]
[357807320,1744451432783,-2000.0,0.00029994,4]
[357807322,1744451432792,-79308.5925973,0.0003,2]
[357807324,1744451432803,-1773.50257178,0.0003,2]
[357807868,1744451438628,-17735.88,0.0003,2]
[357808082,1744451440720,-2340.00092534,0.0003,2]
[357809607,1744451514376,189.04,0.000269,31]
[357809608,1744451514432,189.04,0.000269,31]
[357809609,1744451514484,189.04,0.000269,31]
[357809610,1744451514701,189.04,0.000269,31]
[357809611,1744451514745,189.04,0.000269,31]
[357809612,1744451514789,189.04,0.000269,31]
[357809613,1744451514824,189.04,0.000269,31]
[357809614,1744451514860,189.04,0.000269,31]
[357809615,1744451514895,189.04,0.000269,31]
[357809616,1744451514929,189.04,0.000269,31]
[357809617,1744451515002,189.04,0.000269,31]
[357809618,1744451515086,189.04,0.000269,31]
[357809620,1744452126705,164.47,0.000269,31]
[357809621,1744452126759,164.47,0.000269,31]
[357809622,1744452126818,164.47,0.000269,31]
[357809623,1744452126876,164.47,0.000269,31]
[357809624,1744452126969,164.47,0.000269,31]
[357809625,1744452127184,164.47,0.000269,31]
[357809626,1744452127220,164.47,0.000269,31]
[357809627,1744452127255,164.47,0.000269,31]
[357809628,1744452127290,164.47,0.000269,31]
[357809629,1744452127327,164.47,0.000269,31]
[357809630,1744452127381,164.47,0.000269,31]
[357809631,1744452127422,164.47,0.000269,31]
[357810190,1744452454319,500.0,0.00028,10]
[357810191,1744452474367,517.4683,0.00028,10]
[357810202,1744452609043,1000.0,0.00028,10]
[357810388,1744452638862,-185.09117688,0.000248,2]
[357810390,1744452638872,-277.55987548,0.00026787,2]
[357810392,1744452638882,-1000.0,0.00026887,2]
[357810394,1744452638892,-402.0,0.00026987,2]
[357810396,1744452638902,-211.1174264,0.00027356,2]
[357810398,1744452638911,-500.0,0.00027397,5]
[357810400,1744452638921,-24.45852044,0.00027509,2]
[357810894,1744452643678,-275.54147956,0.00027509,2]
[357810896,1744452643688,-54.45769079,0.0002751,2]
[357810902,1744452643734,-16732.37357621,0.0002751,2]
[357810904,1744452643744,-154.86,0.000276,2]
[357810906,1744452643754,-268.267145,0.00027649,2]
[357810908,1744452643764,-201.2199152,0.000279,7]
[357810910,1744452643774,-160.0,0.00028,3]
[357810912,1744452643785,-160.0,0.00028,3]
[357810914,1744452643795,-160.0,0.00028,3]
[357810916,1744452643805,-201.2199152,0.00028471,8]
[357810918,1744452643815,-160.0,0.00029,10]
[357810920,1744452643825,-160.0,0.00029,10]
[357810922,1744452643835,-201.2199152,0.00029043,8]
[357810924,1744452643844,-160.0,0.00029288,2]
[357810926,1744452643854,-201.2199152,0.00029614,8]
[357810928,1744452643864,-185.09117688,0.000298,2]
[357810930,1744452643873,-500.0,0.00029973,2]
[357810933,1744452643883,-500.0,0.00029973,5]
[357810935,1744452643893,-500.0,0.00029973,5]
[357810937,1744452643902,-402.0,0.00029987,2]
[357810939,1744452643912,-351.45793899,0.0002999,2]
[357810941,1744452643924,-423.12000014,0.0002999,2]
[357811273,1744452646959,-64880.30194977,0.0002999,2]
[357811275,1744452646968,-167.18168319,0.00029999,2]
[357811277,1744452646977,-410.94657718,0.00029999,2]
[357811279,1744452646987,-98892.39829673,0.0003,2]
[357811281,1744452646996,-500.0,0.0003,7]
[357811283,1744452647006,-500.0,0.0003,7]
[357811285,1744452647016,-500.0,0.0003,10]
[357811287,1744452647026,-500.0,0.0003,3]
[357811289,1744452647035,-500.0,0.0003,12]
[357811291,1744452647045,-500.0,0.0003,20]
[357811293,1744452647056,-500.0,0.0003,7]
[357811296,1744452647065,-304.0,0.0003,2]
[357811298,1744452647075,-201.2199152,0.00030186,9]
[357811300,1744452647084,-371.4758678,0.00030506,2]
[357811302,1744452647093,-201.2199152,0.00030757,9]
[357811304,1744452647103,-160.0,0.00030904,2]
[357811306,1744452647113,-500.1,0.000313,12]
[357811308,1744452647122,-201.2199152,0.00031329,9]
[357811310,1744452647132,-201.2199152,0.000319,10]
[357811312,1744452647142,-500.0,0.00031933,5]
[357811314,1744452647151,-201.2199152,0.00032471,10]
[357811316,1744452647160,-164.47,0.000326,31]
[357811318,1744452647170,-164.47,0.000326,31]
[357811320,1744452647180,-164.47,0.000326,31]
[357811322,1744452647189,-164.47,0.000326,31]
[357811324,1744452647199,-164.47,0.000326,31]
[357811326,1744452647209,-164.47,0.000326,31]
[357811329,1744452647219,-164.47,0.000326,31]
[357811331,1744452647228,-164.47,0.000326,31]
[357811333,1744452647238,-164.47,0.000326,31]
[357811335,1744452647248,-164.47,0.000326,31]
[357811337,1744452647258,-164.47,0.000326,31]
[357811355,1744452647414,-164.47,0.000326,31]
[357811357,1744452647424,-164.47,0.000326,31]
[357811359,1744452647434,-164.47,0.000326,31]
[357811361,1744452647444,-164.47,0.000326,31]
[357811363,1744452647454,-164.47,0.000326,31]
[357811365,1744452647463,-164.47,0.000326,31]
[357811367,1744452647473,-164.47,0.000326,31]
[357811369,1744452647482,-164.47,0.000326,31]
[357811371,1744452647491,-164.47,0.000326,31]
[357811373,1744452647500,-164.47,0.000326,31]
[357811375,1744452647510,-164.47,0.000326,31]
[357811377,1744452647519,-164.47,0.000326,31]
[357811379,1744452647529,-164.47,0.000326,31]
[357811381,1744452647538,-1000.0,0.00032877,5]
[357811383,1744452647548,-500.0,0.00032973,5]
[357811385,1744452647559,-500.0,0.00032973,5]
[357811387,1744452647568,-500.0,0.00032973,5]
[357811389,1744452647578,-500.0,0.00032973,5]
[357811391,1744452647587,-500.0,0.00032973,5]
[357811393,1744452647597,-500.0,0.00032973,5]
[357811395,1744452647606,-500.2402,0.00032973,5]
[357811398,1744452647616,-264.29881549,0.00032973,5]
[357811400,1744452647625,-500.0,0.00032973,5]
[357811402,1744452647635,-65654.8798889,0.00032986,2]
[357811404,1744452647645,-402.0,0.00032987,2]
[357811406,1744452647654,-560.33,0.00033,14]
[357811408,1744452647664,-500.0,0.00033,7]
[357811410,1744452647673,-27588.06345756,0.00033,7]
[357811412,1744452647685,-973.096393,0.00033,7]
[357812655,1744452737466,153.2,0.000269,31]
[357812656,1744452737525,153.2,0.000269,31]
[357812657,1744452737582,153.2,0.000269,31]
[357812658,1744452737641,153.2,0.000269,31]
[357812659,1744452737702,153.2,0.000269,31]
[357812660,1744452737760,153.2,0.000269,31]
[357812661,1744452737821,153.2,0.000269,31]
[357812663,1744452737887,153.2,0.000269,31]
[357812664,1744452737947,153.2,0.000269,31]
[357812665,1744452738089,153.2,0.000269,31]
[357812666,1744452738306,153.2,0.000269,31]
[357812674,1744452976640,-135.28750191,0.00045604,60]
[357812675,1744452976669,-524.29,0.00045604,60]
[357812676,1744452976696,-500.0,0.00045604,60]
[357812677,1744452976724,-524.29,0.00045604,60]
[357812678,1744452976752,-500.0,0.00045604,60]
[357812679,1744452976780,-524.29,0.00045604,60]
[357812680,1744452976808,-500.0,0.00045604,60]
[357812681,1744452976836,-524.29,0.00045604,60]
[357812682,1744452976864,-524.29,0.00045604,60]
[357812683,1744452976891,-524.29,0.00045604,60]
[357812684,1744452976917,-524.29,0.00045604,60]
[357812685,1744452976944,-500.0,0.00045604,60]
[357812686,1744452977166,-524.29,0.00045604,60]
[357812687,1744452977192,-500.0,0.00045604,60]
[357812688,1744452977218,-524.29,0.00045604,60]
[357812689,1744452977247,-524.29,0.00045604,60]
[357812690,1744452977273,-500.0,0.00045604,60]
[357812691,1744452977301,-524.29,0.00045604,60]
[357812692,1744452977328,-524.29,0.00045604,60]
[357812693,1744452977354,-500.0,0.00045604,60]
[357812694,1744452977380,-524.29,0.00045604,60]
[357812695,1744452977407,-500.0,0.00045604,60]
[357812696,1744452977433,-524.29,0.00045604,60]
[357812697,1744452977462,-500.0,0.00045604,60]
[357812698,1744452977489,-524.29,0.00045604,60]
[357812699,1744452977515,-500.0,0.00045604,60]
[357812700,1744452977541,-524.29,0.00045604,60]
[357812701,1744452977567,-500.0,0.00045604,60]
[357812702,1744452977592,-524.29,0.00045604,60]
[357812703,1744452977617,-500.0,0.00045604,60]
[357812704,1744452977643,-524.29,0.00045604,60]
[357812705,1744452977669,-500.0,0.00045604,60]
[357812706,1744452977695,-524.29,0.00045604,60]
[357812707,1744452977720,-500.0,0.00045604,60]
[357812708,1744452977745,-524.29,0.00045604,60]
[357812709,1744452977770,-500.0,0.00045604,60]
[357812710,1744452977796,-524.29,0.00045604,60]
[357812711,1744452977822,-500.0,0.00045604,60]
[357812712,1744452977848,-524.29,0.00045604,60]
[357812713,1744452977874,-500.0,0.00045604,60]
[357812714,1744452977900,-524.29,0.00045604,60]
[357812715,1744452977927,-500.0,0.00045604,60]
[357812716,1744452977952,-524.33733275,0.00045604,60]
[357812717,1744452977978,-500.0,0.00045604,60]
[357812718,1744452978004,-280.59951584,0.00045604,60]
[357812719,1744452978030,-500.0,0.00045604,60]
[357812720,1744452978057,-500.0,0.00045604,60]
[357812721,1744452978084,-209.86505494,0.00045604,60]
[357812722,1744452978112,-500.0,0.00045604,60]
[357812723,1744452978140,-500.0,0.00045604,60]
[357812724,1744452978171,-500.0,0.00045604,60]
[357812725,1744452978199,-500.0,0.00045604,60]
[357812726,1744452978227,-500.0,0.00045604,60]
[357812727,1744452978258,-500.0,0.00045604,60]
[357812728,1744452978286,-500.0,0.00045604,60]
[357812729,1744452978314,-500.0,0.00045604,60]
[357812730,1744452978342,-500.0,0.00045604,60]
[357812731,1744452978371,-500.0,0.00045604,60]
[357812732,1744452978402,-500.0,0.00045604,60]
[357812733,1744452978541,-500.0,0.00045604,60]
[357812734,1744452978571,-500.0,0.00045604,60]
[357812735,1744452978600,-500.0,0.00045604,60]
[357812736,1744452978628,-500.0,0.00045604,60]
[357812737,1744452978656,-500.0,0.00045604,60]
[357812738,1744452978684,-500.0,0.00045604,60]
[357812739,1744452978711,-619.98243015,0.00045604,60]
[357812740,1744452978738,-500.0,0.00045604,60]
[357812741,1744452978765,-502.05570938,0.00045604,60]
[357812743,1744452978791,-500.0,0.00045604,60]
[357812744,1744452978818,-500.0,0.00045604,60]
[357812745,1744452978847,-686.27,0.00045604,60]
[357812746,1744452978875,-686.27,0.00045604,60]
[357812747,1744452978903,-253.64204565,0.00045604,60]
[357812748,1744452978933,-686.27,0.00045604,60]
[357812749,1744452978960,-686.27,0.00045604,60]
[357812750,1744452978988,-686.27,0.00045604,60]
[357812751,1744452979016,-686.27,0.00045604,60]
[357812752,1744452979045,-686.27,0.00045604,60]
[357812753,1744452979072,-500.0,0.00045604,60]
[357812754,1744452979100,-686.27,0.00045604,60]
[357812755,1744452979127,-686.27,0.00045604,60]
[357812756,1744452979155,-500.0,0.00045604,60]
[357812757,1744452979182,-686.27,0.00045604,60]
[357812758,1744452979208,-500.0,0.00045604,60]
[357812759,1744452979234,-686.27,0.00045604,60]
[357812760,1744452979261,-500.0,0.00045604,60]
[357812761,1744452979288,-686.27,0.00045604,60]
[357812762,1744452979315,-500.0,0.00045604,60]
[357812763,1744452979342,-686.27,0.00045604,60]
[357812764,1744452979373,-500.0,0.00045604,60]
[357812765,1744452979400,-500.0,0.00045604,60]
[357812766,1744452979428,-686.27,0.00045604,60]
[357812767,1744452979459,-500.0,0.00045604,60]
[357812768,1744452979490,-500.0,0.00045604,60]
[357812769,1744452979516,-686.27,0.00045604,60]
[357812770,1744452979544,-686.27,0.00045604,60]
[357812771,1744452979570,-500.0,0.00045604,60]
[357812772,1744452979596,-686.27,0.00045604,60]
[357812773,1744452979622,-500.0,0.00045604,60]
[357812774,1744452979648,-686.27,0.00045604,60]
[357812775,1744452979674,-500.0,0.00045604,60]
[357812776,1744452979705,-686.27,0.00045604,60]
[357812777,1744452979731,-500.0,0.00045604,60]
[357812778,1744452979759,-686.27,0.00045604,60]
[357812779,1744452979785,-500.0,0.00045604,60]
[357812780,1744452979811,-686.27,0.00045604,60]
[357812781,1744452979838,-500.0,0.00045604,60]
[357812782,1744452979864,-686.27,0.00045604,60]
[357812783,1744452979891,-500.0,0.00045604,60]
[357812784,1744452979918,-686.27,0.00045604,60]
[357812785,1744452979944,-500.0,0.00045604,60]
[357812786,1744452979970,-686.42,0.00045604,60]
[357812787,1744452979995,-500.0,0.00045604,60]
[357812788,1744452980020,-500.0,0.00045604,60]
[357812789,1744452980047,-552.11,0.00045604,60]
[357812790,1744452980072,-500.0,0.00045604,60]
[357812791,1744452980098,-552.11,0.00045604,60]
[357812792,1744452980123,-500.0,0.00045604,60]
[357812793,1744452980148,-603.21333289,0.00045604,60]
[357812794,1744452980173,-552.11,0.00045604,60]
[357812795,1744452980198,-552.11,0.00045604,60]
[357812796,1744452980223,-552.11,0.00045604,60]
[357812797,1744452980248,-552.11,0.00045604,60]
[357812798,1744452980404,-552.11,0.00045604,60]
[357812799,1744452980431,-552.11,0.00045604,60]
[357812800,1744452980462,-552.11,0.00045604,60]
[357812801,1744452980488,-552.11,0.00045604,60]
[357812802,1744452980515,-552.11,0.00045604,60]